Cogmind - Beta 14 @@@ ROGUE MODE // 2024.08.13 @ 00:18:08 Player: Khanable Result: Destroyed by as-27420 with Assembled Heavy Rifle Performance ------------- Evolutions (0) 0 Regions Visited (2) 400 Robots Destroyed (20) 100 Value Destroyed (290) 290 Prototype IDs (2) 40 Alien Tech Used (0) 0 Bonus (0) 0 TOTAL SCORE: 830 Bonus ------- None Cogmind --------- Core Integrity 0/250 Matter 83/300 Energy 59/250 System Corruption 0% Temperature Cool (0) Movement Treading (240) Ox1 Location -10/Mines Parts ------- > --- POWER (1) -------- Ion Engine > --- PROPULSION (2) --- Light Treads > --- UTILITY (2) ------ Large Storage Unit > --- WEAPON (2) ------- Spread Laser > --- INVENTORY (15) --- Ion Engine Light Treads Light Treads Heat Sink Large Storage Unit High-capacity Matter Pod (0) Signal Interpreter Targeting Computer Utility Shielding Shield Generator Grenade Launcher Peak State ------------ > --- POWER ------------ Ion Engine > --- PROPULSION ------- Light Treads Light Treads > --- UTILITY ---------- Small Storage Unit Shield Generator > --- WEAPON ----------- Spread Laser Spread Laser > --- INVENTORY -------- Ion Engine Wheel Compact Wheel Assault Rifle [Rating: 10] Favorites ----------- Power Ion Engine Engine Ion Engine Propulsion Light Treads Treads Light Treads Utility Large Storage Unit Device Shield Generator Storage Large Storage Unit Weapon Spread Laser Energy Gun Spread Laser Ballistic Gun Assault Rifle Launcher Grenade Launcher Build | -11 -10 -10 ------- Run | Yrd Mat Min Slots Evolved . | . . . Power . | . . . Propulsion . | . . . Utility . | . . . Weapon . | . . . Parts Attached 33 | 6 22 5 Power 4 | 1 3 . Engine 4 | 1 3 . Core . | . . . Reactor . | . . . Propulsion 6 | 2 3 1 Treads 6 | 2 3 1 Leg . | . . . Wheel . | . . . Hover . | . . . Flight . | . . . Utility 10 | 1 9 . Device 5 | . 5 . Storage 5 | 1 4 . Processor . | . . . Hackware . | . . . Protection . | . . . Artifact . | . . . Weapon 13 | 2 7 4 Energy Gun 4 | 1 2 1 Energy Cannon . | . . . Ballistic Gun 6 | 1 3 2 Ballistic Cannon . | . . . Launcher 3 | . 2 1 Special Weapon . | . . . Impact Weapon . | . . . Slashing Weapon . | . . . Piercing Weapon . | . . . Special Melee Weapon . | . . . Unidentified Prototypes . | . . . Parts Lost 10 | . 3 7 Power . | . . . Propulsion 3 | . 1 2 Utility 2 | . 1 1 Weapon 5 | . 1 4 Highest Loss Streak 7 | . 2 7 To Critical Strikes . | . . . Average Slot Usage (%) 93 | . 93 91 Engine 13 | . 13 14 Treads 23 | . 23 25 Device 12 | . 12 11 Storage 14 | . 14 14 Energy Gun 14 | . 14 11 Ballistic Gun 10 | . 10 2 Launcher 2 | . 2 11 Peak Build Rating 10 | 6 10 10 Average Rating 8 | 4 9 8 On Entrance 5 | . 6 10 Naked Turns . | . . . Heaviest Build 33 | 13 33 33 Greatest Support 40 | 40 40 40 Greatest Overweight (x) 1 | . 1 1 Average Overweight (x) . | . . . Largest Inventory Capacity 20 | 8 20 15 Average Capacity 14 | 7 14 15 Most Carried 15 | 4 15 15 Average Carried 10 | 1 10 14 Final Capacity 15 | 8 15 15 Final Carried 15 | 4 15 11 Class Distribution -------------------- 100% | Mutant Dominant Class ---------------- Mutant | -10/Materials Mutant | -10/Mines Resources | -11 -10 -10 ----------- Run | Yrd Mat Min Matter Collected 488 | 228 260 . Remotely . | . . . Salvage Created 303 | . 270 33 Parts 39 | . 37 2 Haulers Intercepted 2 | . 2 . Recyclers Shooed 1 | . 1 . Parts Field Recycled . | . . . Retrieved Matter . | . . . Parts Self-Destructed . | . . . Prevented . | . . . Kills | -11 -10 -10 ------- Run | Yrd Mat Min Combat Hostiles Destroyed 13 | . 11 2 Melee 1 | . 1 . Guns 11 | . 10 1 AOE 1 | . . 1 Classes Destroyed 9 | . 6 3 Worker 2 | . 2 . Builder 2 | . 2 . Tunneler 1 | . . 1 Hauler 2 | . 2 . Watcher 1 | . 1 . Swarmer 9 | . 9 . Grunt 2 | . 2 . Demolisher 1 | . . 1 Assembled 1 | . . 1 Best Kill Streak 9 | . 9 3 Combat Bots Only 9 | . 9 2 Max Kills in Single Turn 2 | . 2 1 Gunslinging . | . . . Exploded 1 | . . 1 Melee 1 | . 1 . Uniques/NPCs Destroyed . | . . . Combat | -11 -10 -10 -------- Run | Yrd Mat Min Hostile Shots Fired 74 | . 46 28 Missed 11 | . 8 3 Damage Taken 1361 | . 489 872 Core 258 | . 82 176 Absorbed by Shields 84 | . 18 66 Regen/Repaired (Parts) 9 | . 9 . Core Remaining (%) 100 | 100 . . Volleys Fired 62 | . 49 13 Largest 2 | . 2 2 Hottest 130 | . 130 95 Shots Fired 97 | . 82 15 Gun 83 | . 76 7 Cannon . | . . . Launcher 14 | . 6 8 Special . | . . . Kinetic 33 | . 29 4 Thermal 50 | . 47 3 Explosive 14 | . 6 8 Electromagnetic . | . . . Robot Hit Streak 12 | . 12 3 Robot Miss Streak 10 | . 10 9 Penetration Max . | . . . Secondary Targets 1 | . 1 . Max Gunslinging Chain 1 | . 1 . Shots Hit Robots 64 | . 57 7 Core Hits 60 | . 48 12 Critical Kills . | . . . Critical Parts Destroyed 1 | . 1 . Critical Strikes 1 | . 1 . Destroy 1 | . 1 . Melee Attacks . | . . . Impact . | . . . Slashing . | . . . Piercing . | . . . Sneak Attacks . | . . . Combat Hostiles . | . . . Follow-up Attacks . | . . . Damage Inflicted 882 | . 678 204 Guns 741 | . 669 72 Cannons . | . . . Explosions 132 | . . 132 Melee . | . . . Ramming 9 | . 9 . Kinetic 212 | . 166 46 Thermal 529 | . 503 26 Explosive 132 | . . 132 Electromagnetic . | . . . Impact . | . . . Slashing . | . . . Piercing . | . . . Highest Corruption . | . . . Average Corruption . | . . . Corruption Purged . | . . . Corruption Blocked . | . . . Overload Shots . | . . . Overflow Damage 80 | . 76 4 Projectiles . | . . . Explosions 80 | . 76 4 Melee . | . . . Knockbacks . | . . . Impact . | . . . Kinetic . | . . . Secondary . | . . . Self-Inflicted Damage 199 | . 195 4 Shots 5 | . 4 1 Rammed 2 | . 2 . Targets Rammed 3 | . 3 . Kicked . | . . . Crushed 1 | . 1 . Highest Temperature 335 | . 335 48 Average Temperature 94 | . 100 21 Received Heat Transfer 16 | . 16 . Effects 1 | . 1 . Interference 1 | . 1 . Siege Activations . | . . . Robots Corrupted . | . . . Combat Hostiles . | . . . Parts Fried . | . . . Impact Corruptions . | . . . Robots Melted . | . . . Combat Hostiles . | . . . Parts Melted . | . . . Heat Transferred 650 | . 620 30 Parts Sabotaged . | . . . Parts Stolen . | . . . Parts Stripped . | . . . Power Chain Reactions . | . . . Alert | -11 -10 -10 ------- Run | Yrd Mat Min Peak Influence 337 | . 337 75 Initial 1 | . . 1 Average 139 | . 152 29 Maximum Alert Level 1 | . 1 . Low Security (%) 72 | 100 69 100 Level 1 27 | . 30 . Level 2 . | . . . Level 3 . | . . . Level 4 . | . . . Level 5 . | . . . High Security . | . . . Max Security . | . . . Squads Dispatched 1 | . 1 . Investigation 1 | . 1 . Extermination . | . . . Reinforcement . | . . . Assault . | . . . Garrison . | . . . Intercept . | . . . Searches Triggered . | . . . Construction Impeded . | . . . Haulers Reinforced . | . . . Active Scanning Responses . | . . . Cargo Convoy Interrupts . | . . . Stealth | -11 -10 -10 --------- Run | Yrd Mat Min Distress Signals 1 | . 1 . Communications Jammed . | . . . Distress Signals . | . . . Times Spotted 35 | . 27 8 Peak Tracking Total 9 | . 9 6 Tactical Retreats 1 | . . 1 Traps | -11 -10 -10 ------- Run | Yrd Mat Min Traps Triggered 1 | . 1 . Indirectly . | . . . Trap Hack Attempts . | . . . Triggered . | . . . Disarmed . | . . . Reprogrammed . | . . . Reused . | . . . Traps Extracted . | . . . Installed . | . . . Triggered . | . . . Machines | -11 -10 -10 ---------- Run | Yrd Mat Min Machines Disabled 4 | . 3 1 Max in Single Turn 2 | . 2 1 Machines Repaired . | . . . Machines Dismantled . | . . . Machines Sabotaged . | . . . Overloaded Fab Kills . | . . . Hacking | -11 -10 -10 --------- Run | Yrd Mat Min Machines Accessed 8 | . 8 . Terminals 7 | . 7 . Fabricators . | . . . Repair Stations 1 | . 1 . Recycling Units . | . . . Scanalyzers . | . . . Garrison Access . | . . . Total Hacks 22 | . 22 . Successful 7 | . 7 . Failed 15 | . 15 . Catastrophic 1 | . 1 . Database Lockouts . | . . . Manual 6 | . 6 . Terminals 19 | . 19 . Fabricators . | . . . Repair Stations 3 | . 3 . Recycling Units . | . . . Scanalyzers . | . . . Garrison Access . | . . . Terminal Hacks 5 | . 5 . Record 1 | . 1 . Prototype ID Bank 1 | . 1 . Maintenance Status 1 | . 1 . Hauler Manifests 1 | . 1 . Registered Components 1 | . 1 . Fabricator Hacks . | . . . Repair Station Hacks 2 | . 2 . Scan Component 1 | . 1 . Repair 1 | . 1 . Recycling Unit Hacks . | . . . Scanalyzer . | . . . Garrison Access Hacks . | . . . Unauthorized Hacks . | . . . Terminals . | . . . Fabricators . | . . . Repair Stations . | . . . Recycling Units . | . . . Scanalyzers . | . . . Garrison Access . | . . . Data Cores Recovered . | . . . Used . | . . . Hacking Detections 7 | . 7 . Full Trace Events 6 | . 6 . Feedback Events . | . . . Feedback Blocked . | . . . Robot Schematics Acquired . | . . . Robots Built . | . . . Authchips . | . . . Time . | . . . Total Robot Build Rating . | . . . Part Schematics Acquired . | . . . Parts Built . | . . . Authchips . | . . . Time . | . . . Total Part Build Rating . | . . . Parts Repaired 1 | . 1 . Time 32 | . 32 . Parts Recycled . | . . . Recycled Matter . | . . . Retrieved Matter . | . . . Retrieved Components . | . . . Parts Scanalyzed . | . . . Part Schematics Acquired . | . . . Parts Damaged . | . . . Bothacking | -11 -10 -10 ------------ Run | Yrd Mat Min Used RIF Installer . | . . . Robots Hacked . | . . . Non-combat . | . . . Combat . | . . . Robot Hacks Applied . | . . . Relay Couplers Released . | . . . Fabnet Peak Effective % . | . . . Robots Rewired . | . . . Allies Hacked . | . . . Hacks Repelled . | . . . Allies | -11 -10 -10 -------- Run | Yrd Mat Min Total Allies . | . . . Largest Group . | . . . Highest-Rated Group . | . . . Highest-Rated Ally . | . . . Total Orders . | . . . Ally Attacks . | . . . Total Damage . | . . . Kills . | . . . Allies Corrupted . | . . . Allies Melted . | . . . Intel | -11 -10 -10 ------- Run | Yrd Mat Min Robot Analysis Total . | . . . Derelict Logs Recovered . | . . . Drone Launches . | . . . Drone Recoveries . | . . . Exploration | -11 -10 -10 ------------- Run | Yrd Mat Min Turns Passed 1805 | 109 1641 55 Spaces Moved 828 | 66 749 13 Core 8 | 8 . . Treads 820 | 58 749 13 Legs . | . . . Wheels . | . . . Hover . | . . . Flight . | . . . Fastest Speed 50 | 50 160 160 Average Speed 188 | 146 192 166 Slowest Speed 240 | 160 240 240 Overloaded Moves . | . . . Propulsion Burnouts . | . . . Robots Hopped . | . . . Cave-ins Triggered . | . . . Exploration Rate (%) 34 | 5 82 15 Regions Visited 2 Branch Regions 1 Pre-discovered Areas . | . . . Known Exits Taken . | . . . Unknown Exits Taken 2 | 1 1 . Scrap Searched . | . . . Spaces Dug 57 | . 37 20 Terrain Destroyed 130 | . 79 51 Melee . | . . . Projectile . | . . . AOE 130 | . 79 51 Terrain Rammed . | . . . Walls Destroyed . | . . . Machines Disabled . | . . . Actions | -11 -10 -10 --------- Run | Yrd Mat Min Total 977 | 75 871 31 Wait 9 | . 9 . Move 826 | 65 748 13 Hop . | . . . Pick Up 24 | 4 20 . Fast Attach 16 | 6 10 . Attach 7 | . 3 4 Detach 5 | . 5 . Swap 10 | . 9 1 Drop 15 | . 15 . Fire 62 | . 49 13 Melee . | . . . Ram . | . . . Kick . | . . . Crush 3 | . 3 . Escape Stasis . | . . . Rewire . | . . . Trap . | . . . Miscellaneous . | . . . Route ------- -11/Scrapyard -10/Materials (discovered 4 exits: [*Mat x3] / [*Min]) -10/Mines History --------- Turn | Location | Event 2 | -11/Scrapyard | Met Revision 17 9 | -11/Scrapyard | Discovered new exit (range 15) 110 | -11/Scrapyard | Entered Materials 267 | -10/Materials | Destroyed 9 combat bots 342 | -10/Materials | Build established: Mutant 383 | -10/Materials | Discovered new exit (range 12) 782 | -10/Materials | Discovered new exit (range 10) 1128 | -10/Materials | Discovered new exit (range 15) 1218 | -10/Materials | Discovered new exit (range 3) 1375 | -10/Materials | Repaired Shield Generator? 1751 | -10/Materials | Entered Mines 1759 | -10/Mines | Assembled infested the area 1795 | -10/Mines | Core integrity fell below 50% 1800 | -10/Mines | Core integrity fell below 20% 1806 | -10/Mines | Destroyed by as-27420 with Assembled Heavy Rifle Last Messages --------------- D-53 Grenadier Imp. Light Armor Plating severed. Destroyed Asb. Hover Unit. as-08622 destroyed. Lgt. Treads destroyed. The unstable cave ceiling collapses. Shield Generator destroyed. The unstable cave ceiling collapses. Grenade Launcher destroyed. The unstable cave ceiling collapses. Spread Laser destroyed. as-92702 destroyed. The unstable cave ceiling collapses. Assault Rifle destroyed. The unstable cave ceiling collapses. Lgt. Treads destroyed. The unstable cave ceiling collapses. D-53 Grenadier destroyed. The unstable cave ceiling collapses. Assault Rifle destroyed. The unstable cave ceiling collapses. Map ----- +----------------------------------------------------+ | ?????????????????????????????????????????????????? | | ?????????????????????????????????????????????????? | | ?????????????????????????????????????????????????? | | ?????????????????????????????????????????????????? | | ?????????????????????????????????????????????????? | | ?????????????????????????????????????????????????? | | ???????????????????????????????#?????????????????? | | ?????????????????????????????? ##????????????????? | | ?????????????????????????????# ##???????????????? | | ????????????????????????????# #####???????????? | | ???????????????????????????# ???????????? | | ??????????????????????????# ?????????????? | | ????????????????????????## #??????????????? | | ???????????????????????## #???????????????? | | ??????????????????????## #????????????????? | | ?????????????????????## #????????????????? | | ?????????????????????# #####????????????? | | ?????????????????????# #????????????? | | ?????????????????????## #????????????? | | ???????????? ???????### #### ### #????????????? | | ????????????? ??##?## # ## #?????????????????? | | ?????????????## ## ## ##????????????????? | | ?????????????# # ????#????????????? | | ?????????????# # ## ##???????????? | | ?????????????# % # #???????????? | | ?????????????# !d @ #???????????? | | ?????????????# % #??????????? | | ????????????# "" #??????????? | | ?????????? a "" ????????????? | | ??????????? ## " #???????????? | | ??????????? ???# # #???????????? | | ???????????? ???? #####a #???????????? | | ??????????????? #???? #??????????? | | ??????????????########### #????? #??????????? | | ???????????????????????? ?????? a???????????? | | ???????????????????????? ??????? ????????????? | | ???????????????????????? ???????? ????????????? | | ???????????????????????? #??????????????????????? | | ????????????????????????##???????????????????????? | | ?????????????????????????????????????????????????? | | ?????????????????????????????????????????????????? | | ?????????????????????????????????????????????????? | | ?????????????????????????????????????????????????? | | ?????????????????????????????????????????????????? | | ?????????????????????????????????????????????????? | | ?????????????????????????????????????????????????? | | ?????????????????????????????????????????????????? | | ?????????????????????????????????????????????????? | | ?????????????????????????????????????????????????? | | ?????????????????????????????????????????????????? | +----------------------------------------------------+ Best States ------------- Heat Dissipation 25 Energy Generation 10 Energy Capacity 250 Matter Stores 344 Matter Capacity 400 Sight Range 16 Terrain Scan Density 10 Evasion (%) 40 Recoil Reduction 2 Item Schematics ----------------- None Robot Schematics ------------------ None Fabricated ------------ Nothing Alien Tech Used ----------------- None Achievements -------------- None Challenges ------------ None Game ------ Seed AerolevReflectiveSpecial Manual? 0 Play Time 00:19:53 Cumulative 21.1 hours Start 2024.08.12 @ 22:27:26 End 2024.08.13 @ 00:18:08 Sessions 2 Manual Loads 0 Difficulty Rogue Special Mode None Game No. 22 Rogue 22 Adventurer 0 Explorer 0 Win Type - Total 0 Types 0/0/0/0/0/0/0/0/0 Lore% 5 Gallery% 21 Achievement% 19 Wizard Run 0 Options --------- Layout 1 ASCII 0 Keyboard 1 Movement Vi Keybinds 0 Fullscreen 1 Font 32/SmallcapsGlow Map View 77x35 Zoom Use 0% Tactical HUD 0 Map Filters NONE Filters NONE Steam 1 RUN: ba8b1694-12df-458f-a283-345c23189fa8